bitfinex/quotes_SOLUSD_20220207
["timestamp","ask_amount","ask_price","bid_price","bid_amount"]
[1644226213088,68.19465933,116.63,116.49,79.3898]
[1644226213288,12.8757,116.6,116.49,4.288]
[1644226213687,65.48444739,116.6,116.5,43.61912257]
[1644226214087,52.60874739,116.6,116.5,43.61912257]
[1644226214289,49.5222,116.62,116.5,49.86912257]
[1644226214487,12.8714,116.64,116.51,6.17516284]
[1644226214688,18.8714,116.64,116.52,12.29]
[1644226214896,18.8714,116.64,116.52,14.17616284]
[1644226215089,6.0,116.64,116.52,20.42616284]
[1644226215288,6.0,116.64,116.53,44.15908915]
[1644226215489,66.6688,116.66,116.54,12.29]
[1644226215688,66.6688,116.66,116.54,14.17616284]
[1644226215889,66.6688,116.66,116.54,14.42616284]
[1644226216091,66.6688,116.66,116.54,12.54]
[1644226216289,36.62141846,116.65,116.55,40.4890775]
[1644226216689,42.62141846,116.65,116.55,40.7390775]
[1644226217091,42.87141846,116.65,116.55,40.7390775]
[1644226217291,42.87141846,116.65,116.55,40.4890775]
[1644226217492,55.74241846,116.65,116.55,40.4890775]
[1644226217691,60.03041846,116.65,116.55,40.4890775]
[1644226218694,55.74241846,116.65,116.55,40.4890775]
[1644226219293,55.49241846,116.65,116.55,40.7390775]
[1644226219891,55.49241846,116.65,116.55,40.4890775]
[1644226220696,55.49241846,116.65,116.5,25.21316284]
[1644226220697,68.03241846,116.65,116.51,12.29]
[1644226220898,12.8724,116.63,116.51,12.29]
[1644226221096,18.8724,116.63,116.51,12.54]
[1644226221301,19.1224,116.63,116.51,12.54]
[1644226221498,19.1224,116.63,116.51,12.29]
[1644226221702,39.98452169,116.62,116.52,34.4679384]
[1644226222099,46.23452169,116.62,116.52,34.4679384]
[1644226222706,46.23452169,116.62,116.52,34.7179384]
[1644226222906,46.23452169,116.62,116.49,6.17416284]
[1644226223203,6.43582857,116.61,116.46,4.289]
[1644226223401,18.72582857,116.61,116.41,4.29]
[1644226223601,72.60592857,116.6,116.41,6.17616284]
[1644226223809,12.8782,116.58,116.42,43.11306189]
[1644226224001,56.2238725,116.57,116.43,12.29]
[1644226224205,50.1838725,116.57,116.44,47.78071514]
[1644226224403,50.1838725,116.57,116.46,38.31911328]
[1644226224602,6.25,116.57,116.46,44.31911328]
[1644226224803,6.25,116.57,116.46,44.56911328]
[1644226225007,6.0,116.58,116.48,12.8733]
[1644226225202,0.25,116.57,116.48,19.1233]
[1644226225403,0.25,116.57,116.49,1.8815052]
[1644226225704,0.25,116.57,116.5,41.58889528]
[1644226226104,89.69589117,116.6,116.5,41.58889528]
[1644226226305,29.7542,116.6,116.5,41.58889528]
[1644226226503,6.25,116.6,116.5,43.47040048]
[1644226226702,24.6744,116.61,116.51,12.29]
[1644226226703,30.6744,116.61,116.51,12.29]
[1644226226904,6.0,116.6,116.51,12.29]
[1644226227105,6.0,116.61,116.51,7.8815052]
[1644226227305,6.0,116.61,116.52,48.29589717]
[1644226227506,43.31061652,116.62,116.52,48.29589717]
[1644226227708,6.0,116.62,116.52,50.42740237]
[1644226227907,6.25,116.62,116.52,50.42740237]
[1644226228108,0.25,116.62,116.52,50.42740237]
[1644226228307,6.0,116.62,116.52,50.42740237]
[1644226228509,6.30444,116.61,116.52,50.17740237]
[1644226228707,6.55444,116.61,116.52,50.17740237]
[1644226229310,40.80993074,116.6,116.52,50.17740237]
[1644226229710,41.05993074,116.6,116.52,50.17740237]
[1644226229911,0.25,116.6,116.52,50.42740237]
[1644226230410,23.621,116.63,116.52,50.42740237]
[1644226230817,64.52563853,116.63,116.52,50.42740237]
[1644226231441,64.52563853,116.63,116.52,62.71740237]
[1644226231840,70.77563853,116.63,116.52,62.71740237]
[1644226234041,29.871,116.63,116.53,12.8685]
[1644226234243,23.871,116.63,116.54,12.29]
[1644226234538,23.871,116.63,116.54,14.16523805]
[1644226234738,23.871,116.63,116.54,20.41523805]
[1644226234938,23.871,116.63,116.55,34.79909741]
[1644226235139,23.871,116.63,116.55,53.08909741]
[1644226235338,22.6227,116.66,116.55,55.21433546]
[1644226235539,2.40233595,116.68,116.56,1.87523805]
[1644226235741,2.40233595,116.7,116.57,12.29]
[1644226235942,2.40233595,116.69,116.57,37.1776]
[1644226236141,40.9952792,116.68,116.58,37.33099476]
[1644226236340,8.40233595,116.69,116.58,49.87099476]
[1644226236542,6.0,116.68,116.58,55.87099476]
[1644226236739,8.40233595,116.69,116.58,55.87099476]
[1644226236940,6.68933595,116.7,116.58,55.87099476]
[1644226237140,33.9923,116.71,116.58,66.00299476]
[1644226237440,82.6213529,116.71,116.58,66.00299476]
[1644226237740,78.5863529,116.71,116.58,66.00299476]
[1644226237942,23.9573,116.71,116.58,78.86489476]
[1644226238441,23.7073,116.71,116.58,92.35823122]
[1644226238642,4.285,116.73,116.58,247.85265784]
[1644226238843,4.285,116.73,116.59,8.05436434]
[1644226239043,4.285,116.73,116.6,60.61573423]
[1644226239248,4.285,116.73,116.6,76.23349731]
[1644226239443,49.80891074,116.73,116.61,1.87442662]
[1644226239643,4.285,116.73,116.62,12.29]
[1644226239844,4.285,116.73,116.62,12.54]
[1644226240044,4.535,116.73,116.63,12.8563]
[1644226240243,4.535,116.73,116.63,25.3963]
[1644226240444,4.535,116.73,116.63,31.3963]
[1644226240743,4.535,116.73,116.64,35.55916964]
[1644226241146,4.535,116.73,116.64,41.80916964]
[1644226241353,47.2876384,116.73,116.64,49.94616964]
[1644226241646,4.535,116.73,116.64,49.94616964]
[1644226241844,4.535,116.73,116.64,49.69616964]
[1644226242646,44.96462046,116.73,116.64,61.98616964]
[1644226243345,44.96462046,116.73,116.64,62.23616964]
[1644226244547,4.535,116.73,116.64,62.23616964]
[1644226245347,44.29493481,116.73,116.64,62.23616964]
[1644226245950,44.29493481,116.73,116.64,49.69616964]
[1644226246147,52.44176338,116.73,116.64,43.69616964]
[1644226247950,65.30276338,116.73,116.64,43.69616964]
[1644226248550,65.30276338,116.73,116.64,8.137]
[1644226249549,65.30276338,116.73,116.65,39.59128008]
[1644226250250,65.30276338,116.73,116.64,8.137]
[1644226251252,77.59276338,116.73,116.64,56.83801821]
[1644226251451,77.59276338,116.73,116.64,8.137]
[1644226252052,28.43322693,116.72,116.64,8.137]
[1644226252252,12.869,116.7,116.64,8.137]
[1644226252452,51.22545828,116.69,116.64,8.137]
[1644226252652,57.22545828,116.69,116.64,8.137]
[1644226252856,59.37228685,116.69,116.64,8.137]
[1644226253053,57.22545828,116.69,116.64,8.137]
[1644226253453,59.37228685,116.69,116.64,8.137]
[1644226254056,44.62267398,116.67,116.64,8.137]
[1644226254254,3.03219997,116.66,116.64,8.137]
[1644226254652,9.03219997,116.66,116.64,8.137]
[1644226254856,6.0,116.69,116.64,11.16719997]
[1644226255057,6.0,116.69,116.64,7.637]
[1644226255254,2.14682857,116.69,116.57,12.29]
[1644226255456,8.14682857,116.69,116.56,4.287]
[1644226255655,20.43682857,116.69,116.56,4.287]
[1644226255857,6.30444,116.68,116.56,4.287]
[1644226256056,6.30444,116.68,116.57,44.35357967]
[1644226256057,36.55226684,116.67,116.57,44.35357967]
[1644226256255,36.80226684,116.67,116.57,44.35357967]
[1644226256460,42.80226684,116.67,116.57,44.35357967]
[1644226256656,67.22316684,116.67,116.57,44.35357967]
[1644226257858,23.7697,116.66,116.57,44.35357967]
[1644226258061,29.7697,116.66,116.57,44.35357967]
[1644226258259,30.0197,116.66,116.57,44.35357967]
[1644226258660,24.0197,116.66,116.57,44.35357967]
[1644226258960,38.91629879,116.65,116.57,44.35357967]
[1644226259160,44.91629879,116.65,116.57,44.35357967]
[1644226259360,45.16629879,116.65,116.57,44.35357967]
[1644226259763,44.91629879,116.65,116.57,44.35357967]
[1644226260662,6.0,116.65,116.57,44.35357967]
[1644226260862,42.6392,116.66,116.57,44.35357967]
[1644226261063,38.8892,116.66,116.57,44.35357967]
[1644226261260,38.8892,116.66,116.57,44.60357967]
[1644226261663,75.61191153,116.66,116.57,44.60357967]
[1644226262662,75.61191153,116.66,116.57,44.35357967]
[1644226262865,76.82586736,116.66,116.57,44.35357967]
[1644226264266,81.11286736,116.66,116.57,44.35357967]
[1644226265090,1.21395583,116.65,116.57,44.35357967]
[1644226265269,12.8719,116.64,116.52,112.5]
[1644226265470,12.8719,116.64,116.51,80.37459831]
[1644226265471,14.08585583,116.64,116.51,80.37459831]
[1644226265669,1.21395583,116.63,116.51,85.1629]
[1644226265869,12.29,116.62,116.51,85.1629]
[1644226266169,23.5248,116.61,116.52,46.11798326]
[1644226266570,29.7748,116.61,116.52,52.11798326]
[1644226266870,29.7748,116.61,116.52,52.36798326]
[1644226268475,36.72444399,116.6,116.52,52.36798326]
[1644226268673,42.72444399,116.6,116.52,52.36798326]
[1644226268883,42.97444399,116.6,116.52,46.36798326]
[1644226269083,42.97444399,116.6,116.52,46.11798326]
[1644226269880,6.25,116.6,116.52,46.11798326]
[1644226270083,0.25,116.6,116.52,46.11798326]
[1644226270286,6.0,116.6,116.52,46.11798326]
[1644226270685,6.25,116.6,116.52,46.11798326]
[1644226270884,0.25,116.6,116.52,46.11798326]
[1644226271085,6.25,116.6,116.52,46.11798326]
[1644226271284,36.92277643,116.59,116.52,46.11798326]
[1644226271683,6.25,116.59,116.52,46.11798326]
[1644226272084,0.25,116.59,116.52,46.11798326]
[1644226272284,6.25,116.59,116.52,46.11798326]
[1644226272895,0.25,116.59,116.52,46.11798326]
[1644226273094,6.25,116.59,116.52,46.11798326]
[1644226274297,0.25,116.59,116.52,46.11798326]
[1644226274700,44.19234771,116.6,116.52,46.11798326]
[1644226277399,0.25,116.6,116.52,46.11798326]
[1644226277601,29.4543,116.61,116.52,52.11798326]
[1644226277602,23.4143,116.61,116.52,52.11798326]
[1644226277802,23.4143,116.61,116.52,52.36798326]
[1644226277803,6.25,116.61,116.52,52.36798326]
[1644226277999,6.25,116.61,116.52,52.11798326]
[1644226278401,49.44822747,116.61,116.52,52.11798326]
[1644226279001,6.0,116.61,116.52,52.11798326]
[1644226279201,29.5807,116.63,116.52,52.36798326]
[1644226279902,36.73436283,116.62,116.52,54.24159852]
[1644226280103,42.73436283,116.62,116.52,54.24159852]
[1644226280304,42.98436283,116.62,116.52,54.24159852]
[1644226280502,23.0802,116.61,116.52,54.24159852]
[1644226281003,29.0802,116.61,116.52,54.24159852]
[1644226281702,29.3302,116.61,116.52,48.24159852]
[1644226281902,34.95912456,116.6,116.52,54.24159852]
[1644226282101,23.3302,116.61,116.52,54.24159852]
[1644226282302,23.3302,116.61,116.52,52.36798326]
[1644226282501,23.3302,116.61,116.52,52.11798326]
[1644226283602,63.07422168,116.61,116.52,52.11798326]
[1644226283802,63.07422168,116.61,116.52,52.36798326]
[1644226284202,23.3302,116.61,116.52,52.36798326]
[1644226284704,29.3302,116.61,116.52,52.36798326]
[1644226285703,65.28490064,116.61,116.52,52.36798326]
[1644226286105,65.28490064,116.61,116.52,52.11798326]
[1644226286707,65.28490064,116.61,116.52,46.11798326]
[1644226286905,77.57490064,116.61,116.52,46.11798326]
[1644226287505,78.78885647,116.61,116.49,5.50069831]
[1644226287705,12.8757,116.6,116.49,4.289]
[1644226287906,12.29,116.59,116.49,4.289]
[1644226288108,24.9017,116.58,116.49,4.289]
[1644226288307,25.1517,116.58,116.49,4.289]
[1644226288506,42.72512029,116.57,116.49,38.5379746]
[1644226288706,42.97512029,116.57,116.49,38.5379746]
[1644226288906,12.8804,116.56,116.49,38.5379746]
[1644226289107,36.04841566,116.55,116.49,38.5379746]
[1644226289307,36.29841566,116.55,116.49,38.5379746]
[1644226289507,42.29841566,116.55,116.49,38.5379746]
[1644226290108,42.29841566,116.55,116.49,4.289]
[1644226291109,55.18041566,116.55,116.49,4.289]
[1644226292009,67.47041566,116.55,116.49,4.289]
[1644226292408,69.61724423,116.55,116.49,4.289]
[1644226292610,69.61724423,116.55,116.42,1.21169831]
[1644226292809,48.323,116.54,116.42,1.21169831]
[1644226293010,12.8876,116.51,116.41,1.21169831]
[1644226293213,48.7939,116.51,116.4,1.21169831]
[1644226293410,54.7939,116.51,116.4,1.21169831]
[1644226293811,23.0708,116.5,116.41,36.49715197]
[1644226294214,29.3208,116.5,116.41,36.74715197]
[1644226294413,23.3208,116.5,116.41,36.74715197]
[1644226294615,29.3208,116.5,116.41,36.74715197]
[1644226294814,29.0708,116.5,116.41,36.74715197]
[1644226295412,36.81232338,116.49,116.41,36.74715197]
[1644226295613,29.0708,116.5,116.41,36.74715197]
[1644226296013,29.0708,116.5,116.41,36.49715197]
[1644226296212,29.3208,116.5,116.41,36.74715197]
[1644226296614,74.35294306,116.5,116.41,36.74715197]
[1644226296813,29.3208,116.5,116.41,36.74715197]
[1644226297314,29.3208,116.5,116.41,42.74715197]
[1644226297515,29.3208,116.5,116.41,36.74715197]
[1644226298115,29.3208,116.5,116.41,42.74715197]
[1644226298715,29.3208,116.5,116.41,36.49715197]
[1644226300620,29.3208,116.5,116.41,42.74715197]
[1644226300823,29.3208,116.5,116.41,36.74715197]
[1644226301221,29.3208,116.5,116.41,36.49715197]
[1644226301620,70.78626003,116.5,116.41,36.49715197]
[1644226303821,22.9266,116.49,116.41,36.49715197]
[1644226304020,43.40463667,116.48,116.41,36.49715197]
[1644226304220,43.65463667,116.48,116.41,36.49715197]
[1644226304422,49.65463667,116.48,116.41,36.49715197]
[1644226306922,49.65463667,116.48,116.39,24.7483]
[1644226307127,22.6215,116.47,116.39,24.7483]
[1644226307326,22.8715,116.47,116.39,24.7483]
[1644226307524,28.8715,116.47,116.39,12.9785]
[1644226307923,41.46546003,116.46,116.39,38.28438904]
[1644226308328,41.71546003,116.46,116.39,38.28438904]
[1644226309324,54.60736003,116.46,116.39,38.28438904]
[1644226310724,13.1419,116.46,116.39,38.28438904]
[1644226310925,0.25,116.46,116.39,38.28438904]
[1644226311327,28.8715,116.47,116.39,38.28438904]
[1644226311527,28.8715,116.47,116.37,49.25540298]
[1644226311926,41.7624,116.47,116.37,49.25540298]
[1644226312327,12.29,116.46,116.37,49.25540298]
[1644226312526,57.50544071,116.46,116.37,97.10052035]
[1644226312726,63.75544071,116.46,116.37,97.10052035]
[1644226313127,12.8942,116.44,116.37,49.25540298]
[1644226313329,13.1442,116.44,116.37,49.25540298]
[1644226313532,19.1442,116.44,116.37,49.25540298]
[1644226313730,31.4342,116.44,116.37,49.25540298]
[1644226314129,34.75896576,116.43,116.37,49.25540298]
[1644226314329,35.00896576,116.43,116.37,49.25540298]
[1644226314530,12.29,116.42,116.37,49.25540298]
[1644226314728,12.54,116.42,116.37,31.361665]
[1644226314930,18.54,116.42,116.37,31.361665]
[1644226315129,45.65137273,116.41,116.37,31.361665]
[1644226315329,58.19137273,116.41,116.37,31.361665]
[1644226315532,64.19137273,116.41,116.37,31.361665]
[1644226318941,18.54,116.41,116.37,31.361665]
[1644226319133,23.7056,116.46,116.37,31.361665]
[1644226319538,31.39440956,116.5,116.37,31.611665]
[1644226319735,48.0734,116.49,116.38,1.87430605]
[1644226319935,47.38378666,116.48,116.39,46.20683069]
[1644226320637,53.38378666,116.48,116.39,46.20683069]
[1644226321539,53.63378666,116.48,116.39,46.20683069]
[1644226321735,53.63378666,116.48,116.37,31.361665]
[1644226322337,65.92378666,116.48,116.37,31.361665]
[1644226322736,65.92378666,116.48,116.38,41.32273606]
[1644226323336,65.92378666,116.48,116.37,31.361665]
[1644226323538,67.13774249,116.48,116.37,31.361665]
[1644226323738,69.28457106,116.48,116.37,31.361665]
[1644226324141,221.40457106,116.48,116.37,31.361665]
[1644226324338,37.48631004,116.46,116.37,31.361665]
[1644226324638,38.48016376,116.44,116.37,31.361665]
[1644226324838,43.91118679,116.42,116.37,31.361665]
[1644226325037,12.29,116.42,116.37,6.5e-05]
[1644226325237,12.54,116.42,116.37,6.5e-05]
[1644226325438,20.68682857,116.42,116.37,6.5e-05]
[1644226326642,14.62530757,116.42,116.37,6.5e-05]
[1644226329265,17.775202,116.41,116.37,6.5e-05]
[1644226329563,12.29,116.4,116.37,6.5e-05]
[1644226329763,3.03219997,116.39,116.37,6.5e-05]
[1644226330164,9.28219997,116.39,116.37,6.5e-05]
[1644226331163,9.03219997,116.39,116.37,6.5e-05]
[1644226331768,6.68329997,116.39,116.38,3.03019997]
[1644226332065,6.68329997,116.39,116.37,6.5e-05]
[1644226332264,0.68329997,116.39,116.37,6.5e-05]
[1644226334665,0.68329997,116.39,116.37,36.40960525]
[1644226334866,0.68329997,116.39,116.38,3.03019997]
[1644226335065,53.516,116.44,116.39,35.51329442]
[1644226335265,6.25,116.44,116.39,35.51329442]
[1644226336066,0.25,116.44,116.39,35.51329442]
[1644226336265,47.1625139,116.45,116.39,35.51329442]
[1644226337270,48.37646973,116.45,116.37,6.5e-05]
[1644226337473,2.14682857,116.44,116.37,6.5e-05]
[1644226337674,13.50395583,116.43,116.37,6.5e-05]
[1644226338071,15.9007844,116.43,116.37,6.5e-05]
[1644226338872,1.21395583,116.42,116.37,6.5e-05]
[1644226339075,12.29,116.41,116.37,6.5e-05]
[1644226339272,12.54,116.41,116.37,6.5e-05]
[1644226339475,18.54,116.41,116.37,6.5e-05]
[1644226341473,6.25,116.41,116.37,6.5e-05]
[1644226341674,0.25,116.41,116.39,42.74659737]
[1644226341874,0.68329997,116.4,116.39,42.74659737]
[1644226342075,0.68329997,116.4,116.39,1.8973994]
[1644226344175,0.68329997,116.4,116.39,7.27649937]
[1644226344376,6.25,116.43,116.39,1.8973994]
[1644226344979,54.77710123,116.43,116.39,1.8973994]
[1644226345377,55.99105706,116.43,116.39,1.8973994]
[1644226346580,34.84299547,116.41,116.39,1.8973994]
[1644226346779,0.68329997,116.4,116.39,1.8973994]
[1644226349482,0.68329997,116.4,116.39,4.2462994]
[1644226349682,0.68329997,116.4,116.39,1.8973994]
[1644226350683,48.7734124,116.43,116.39,1.8973994]
[1644226350883,49.0234124,116.43,116.39,1.8973994]
[1644226351284,0.25,116.43,116.39,1.8973994]
[1644226351485,1.21395583,116.44,116.39,1.8973994]
[1644226351687,6.0,116.44,116.39,1.8973994]
[1644226351886,1.21395583,116.46,116.39,1.8973994]
[1644226352291,47.08582257,116.45,116.39,37.64691016]
[1644226353087,53.08582257,116.45,116.39,37.64691016]
[1644226353288,53.33582257,116.45,116.39,1.8973994]
[1644226354188,54.5497784,116.45,116.39,1.8973994]
[1644226354388,53.33582257,116.45,116.39,1.8973994]
[1644226354790,53.33582257,116.45,116.4,37.49726929]
[1644226355290,53.33582257,116.45,116.39,1.8973994]
[1644226356289,54.5497784,116.45,116.4,36.81819206]
[1644226356489,53.33582257,116.45,116.39,1.8973994]
[1644226356789,54.5497784,116.45,116.39,1.8973994]
[1644226359995,24.375387,116.44,116.39,1.8973994]
[1644226360192,19.50395583,116.44,116.39,1.8973994]
[1644226360392,3.3607844,116.43,116.39,1.8973994]
[1644226360691,13.50395583,116.42,116.39,1.8973994]
[1644226360894,36.28427413,116.4,116.39,1.8973994]
[1644226361092,0.68329997,116.41,116.39,1.8973994]
[1644226361492,6.25,116.42,116.4,5.37909997]
[1644226361692,6.25,116.42,116.39,1.8973994]
[1644226361894,0.25,116.42,116.39,1.8973994]
[1644226362093,0.68329997,116.41,116.37,6.5e-05]
[1644226367202,6.0,116.44,116.38,57.0]
[1644226367402,1.21395583,116.46,116.38,57.0]
[1644226367607,7.21395583,116.46,116.38,57.0]
[1644226367803,1.21395583,116.47,116.38,57.25]
[1644226368005,1.21395583,116.47,116.39,41.30886697]
[1644226368204,7.21395583,116.47,116.39,41.30886697]
[1644226368404,1.21395583,116.48,116.39,41.30886697]
[1644226368603,1.21395583,116.48,116.39,41.55886697]
[1644226368604,7.21395583,116.48,116.39,41.55886697]
[1644226368802,1.21395583,116.48,116.39,41.30886697]
[1644226369004,6.0,116.48,116.39,41.55886697]
[1644226369504,6.0,116.48,116.39,41.30886697]
[1644226369802,48.79706547,116.49,116.39,41.30886697]
[1644226369803,54.79706547,116.49,116.39,41.55886697]
[1644226370226,54.79706547,116.49,116.39,41.30886697]
[1644226370424,3.3607844,116.48,116.39,41.30886697]
[1644226370623,37.00094289,116.47,116.39,41.30886697]
[1644226370823,37.25094289,116.47,116.39,41.30886697]
[1644226371024,43.25094289,116.47,116.39,41.30886697]
[1644226371223,42.03698706,116.47,116.39,41.30886697]
[1644226371424,43.25094289,116.47,116.39,41.30886697]
[1644226371723,42.03698706,116.47,116.39,41.30886697]
[1644226372123,43.25094289,116.47,116.39,41.30886697]
[1644226372523,42.03698706,116.47,116.39,41.30886697]
[1644226373123,6.25,116.47,116.39,41.30886697]
[1644226373323,0.25,116.47,116.39,41.30886697]
[1644226373523,1.46395583,116.48,116.39,41.30886697]
[1644226373724,7.46395583,116.48,116.39,41.30886697]
[1644226373926,1.21395583,116.47,116.39,41.30886697]
[1644226374124,42.04576749,116.47,116.39,41.30886697]
[1644226374325,42.29576749,116.47,116.39,41.30886697]
[1644226374926,44.44259606,116.47,116.37,22.700265]
[1644226375124,13.50395583,116.46,116.37,22.700265]
[1644226375326,13.75395583,116.46,116.37,22.700265]
[1644226375524,21.9007844,116.46,116.37,22.700265]
[1644226375723,45.3843844,116.46,116.37,22.700265]
[1644226375925,40.91098719,116.45,116.37,64.52235771]
[1644226376126,46.91098719,116.45,116.37,64.52235771]
[1644226376325,47.16098719,116.45,116.37,41.82215771]
[1644226376725,48.37494302,116.45,116.37,41.82215771]
[1644226378526,48.37494302,116.45,116.37,6.5e-05]
[1644226378927,13.50395583,116.44,116.37,6.5e-05]
[1644226379129,1.21395583,116.43,116.37,6.5e-05]
[1644226379328,12.29,116.42,116.37,6.5e-05]
[1644226379527,13.50395583,116.42,116.37,6.5e-05]
[1644226379727,18.54,116.42,116.37,6.5e-05]
[1644226380532,39.89560462,116.41,116.33,34.14769445]
[1644226380731,40.14560462,116.41,116.33,34.14769445]
[1644226380929,46.14560462,116.41,116.33,32.14769445]
[1644226381131,45.89560462,116.41,116.33,32.14769445]
[1644226382634,46.14560462,116.41,116.33,32.14769445]
[1644226384535,46.14560462,116.41,116.32,23.1727]
[1644226385437,46.14560462,116.41,116.32,61.71945443]
[1644226385640,47.35956045,116.41,116.32,61.71945443]
[1644226386436,46.14560462,116.41,116.32,61.71945443]
[1644226386837,69.01390462,116.41,116.32,61.71945443]
[1644226388835,69.01390462,116.41,116.32,38.54675443]
[1644226389036,70.22786045,116.41,116.32,38.54675443]
[1644226389840,12.29,116.4,116.3,26.26800457]
[1644226390038,12.29,116.4,116.3,1.97900457]
[1644226390240,23.0749,116.39,116.29,0.31144366]
[1644226390640,29.3249,116.39,116.29,0.31144366]
[1644226390843,40.32618904,116.38,116.29,36.41444856]
[1644226391040,40.32618904,116.38,116.3,0.1]
[1644226391241,46.57618904,116.38,116.3,0.1]
[1644226394846,46.32618904,116.38,116.3,0.1]
[1644226395047,6.0,116.38,116.3,0.1]
[1644226395246,6.0,116.38,116.3,1.97900457]
[1644226395448,29.0749,116.39,116.3,1.97900457]
[1644226396048,43.6602304,116.38,116.31,39.44766113]
[1644226396246,43.9102304,116.38,116.31,39.44766113]
[1644226396449,49.6602304,116.38,116.31,39.44766113]
[1644226397849,49.9102304,116.38,116.31,39.44766113]
[1644226398348,6.25,116.38,116.31,39.44766113]
[1644226398551,6.0,116.38,116.31,39.44766113]
[1644226398748,30.25445175,116.42,116.31,39.44766113]
[1644226398749,6.0,116.4,116.31,39.69766113]
[1644226398948,36.25445175,116.42,116.31,39.69766113]
[1644226399149,18.29,116.42,116.31,39.69766113]
[1644226399450,6.0,116.42,116.31,39.69766113]
[1644226399651,46.58936488,116.43,116.31,39.69766113]
[1644226399951,6.0,116.43,116.31,39.69766113]
[1644226400157,7.21395583,116.45,116.31,92.53347209]
[1644226400349,6.0,116.45,116.31,92.53347209]
[1644226400551,7.21395583,116.45,116.32,1.87900457]
[1644226400749,1.21395583,116.45,116.32,14.41900457]
[1644226400950,43.55834882,116.44,116.33,48.5627569]
[1644226401349,51.02230465,116.44,116.33,48.5627569]
[1644226401850,39.22087392,116.42,116.33,48.5627569]
[1644226402050,52.72482975,116.42,116.33,48.5627569]
[1644226402250,1.21395583,116.41,116.33,48.5627569]
[1644226402451,44.09412056,116.4,116.33,48.5627569]
[1644226402849,44.34412056,116.4,116.33,48.5627569]
[1644226404052,44.34412056,116.4,116.3,24.3193]
[1644226404449,45.55807639,116.4,116.3,26.19830457]
[1644226404855,24.9591,116.39,116.3,26.19830457]
[1644226405053,42.27591114,116.38,116.31,41.92014378]
[1644226405254,42.52591114,116.38,116.31,41.92014378]
[1644226406053,48.52591114,116.38,116.31,41.92014378]
[1644226407858,48.27591114,116.38,116.31,41.92014378]
[1644226408858,6.0,116.38,116.31,41.92014378]
[1644226409062,7.21395583,116.4,116.31,41.92014378]
[1644226409360,1.21395583,116.4,116.31,41.92014378]
[1644226409558,7.21395583,116.4,116.31,41.92014378]
[1644226409958,43.63955861,116.39,116.31,41.92014378]
[1644226410159,49.63955861,116.39,116.31,41.92014378]
[1644226410560,50.85351444,116.39,116.31,41.92014378]
[1644226410759,51.10351444,116.39,116.31,41.92014378]
[1644226410960,49.88955861,116.39,116.31,41.92014378]
[1644226412162,51.10351444,116.39,116.31,41.92014378]
[1644226412363,49.88955861,116.39,116.31,41.92014378]
[1644226412561,51.10351444,116.39,116.31,41.92014378]
[1644226420372,49.88955861,116.39,116.31,41.92014378]
[1644226420573,49.63955861,116.39,116.31,41.92014378]
[1644226421975,49.88955861,116.39,116.31,41.92014378]
[1644226422373,51.10351444,116.39,116.31,41.92014378]
[1644226423676,49.20611504,116.39,116.31,41.92014378]
[1644226429097,1.21395583,116.38,116.31,41.92014378]
[1644226429295,37.52541785,116.37,116.3,24.3193]
[1644226429497,37.52541785,116.37,116.3,0.1]
[1644226429799,43.77541785,116.37,116.29,0.31144366]
[1644226430398,43.77541785,116.37,116.29,36.22619776]
[1644226430601,43.77541785,116.37,116.3,0.1]
[1644226430898,43.52541785,116.37,116.3,0.1]
[1644226431699,42.52541785,116.37,116.3,0.1]
[1644226432301,42.77541785,116.37,116.3,0.1]
[1644226434001,43.98937368,116.37,116.3,0.1]
[1644226434200,43.98937368,116.37,116.29,0.31144366]
[1644226434403,1.21395583,116.36,116.29,0.31144366]
[1644226434603,31.18545583,116.36,116.29,0.31144366]
[1644226434803,31.43545583,116.36,116.29,0.31144366]
[1644226435001,41.4200467,116.35,116.29,40.42133637]
[1644226435201,47.6700467,116.35,116.3,0.1]
[1644226436403,47.4200467,116.35,116.3,0.1]
[1644226438305,47.6700467,116.35,116.3,0.1]
[1644226439706,6.25,116.35,116.3,0.1]
[1644226440910,0.25,116.35,116.3,0.1]
[1644226441108,30.2215,116.36,116.3,0.1]
[1644226441910,6.25,116.36,116.3,0.1]
[1644226442111,0.25,116.36,116.3,0.1]
[1644226442312,6.0,116.36,116.3,0.1]
[1644226443113,1.21395583,116.37,116.3,0.1]
[1644226443114,7.21395583,116.37,116.3,0.1]